bitfinex/quotes_BTCUSD_20220731
["timestamp","ask_amount","ask_price","bid_price","bid_amount"]
[1659259930489,1.40330382,23666.0,23665.0,0.001]
[1659259931876,1.35430382,23666.0,23665.0,0.001]
[1659259932585,1.45330382,23666.0,23665.0,0.001]
[1659259933295,1.39754745,23666.0,23665.0,0.001]
[1659259933528,1.34764382,23666.0,23665.0,0.001]
[1659259934241,1.29864382,23666.0,23665.0,0.001]
[1659259934476,1.35064382,23666.0,23665.0,0.001]
[1659259935398,1.40064382,23666.0,23665.0,0.001]
[1659259935657,0.05,23661.0,23658.0,0.34546987]
[1659259935894,0.40725733,23660.0,23658.0,0.34546987]
[1659259936117,0.40725733,23660.0,23658.0,0.34788194]
[1659259936324,0.40725733,23660.0,23658.0,0.34546987]
[1659259936528,0.05,23659.0,23658.0,0.34546987]
[1659259936810,0.4598352,23659.0,23658.0,0.34546987]
[1659259937023,0.4098352,23659.0,23658.0,0.34788194]
[1659259937473,0.4098352,23659.0,23658.0,0.34546987]
[1659259938588,0.4458352,23659.0,23658.0,0.34546987]
[1659259939512,0.48469282,23659.0,23658.0,0.34546987]
[1659259939965,0.4458352,23659.0,23658.0,0.34546987]
[1659259941589,0.4098352,23659.0,23658.0,0.34546987]
[1659259942081,0.44869282,23659.0,23658.0,0.34546987]
[1659259942504,0.48469282,23659.0,23658.0,0.34546987]
[1659259942706,0.4458352,23659.0,23658.0,0.34546987]
[1659259943178,0.48469282,23659.0,23658.0,0.34546987]
[1659259943616,0.44869282,23659.0,23658.0,0.34546987]
[1659259944478,0.48469282,23659.0,23658.0,0.34546987]
[1659259945037,0.7501862,23659.0,23658.0,0.34546987]
[1659259945176,0.48469282,23659.0,23658.0,0.34546987]
[1659259945599,0.4458352,23659.0,23658.0,0.34546987]
[1659259945824,0.4098352,23659.0,23658.0,0.34546987]
[1659259946419,1.23464382,23659.0,23658.0,0.34546987]
[1659259946651,1.28464382,23659.0,23658.0,0.34546987]
[1659259946872,1.28464382,23659.0,23658.0,0.0003]
[1659259947091,0.365635,23658.0,23657.0,0.0021]
[1659259947320,2.07839233,23658.0,23657.0,0.0021]
[1659259947798,2.02839233,23658.0,23657.0,0.0021]
[1659259948323,1.3353702,23658.0,23657.0,0.0021]
[1659259948541,0.404351,23657.0,23656.0,0.0021]
[1659259948771,0.86160833,23657.0,23656.0,0.0021]
[1659259948994,0.91160833,23657.0,23656.0,0.0021]
[1659259949224,1.35720833,23657.0,23656.0,0.0021]
[1659259949441,1.30720833,23657.0,23656.0,0.0021]
[1659259950178,0.71160833,23657.0,23656.0,0.0021]
[1659259950399,0.75960833,23657.0,23656.0,0.0021]
[1659259951318,0.75960833,23657.0,23656.0,0.06069348]
[1659259951555,0.048,23657.0,23656.0,0.06069348]
[1659259951789,0.00257787,23658.0,23656.0,0.06069348]
[1659259952020,0.00257787,23658.0,23657.0,0.1]
[1659259952483,0.04557787,23658.0,23657.0,0.11264348]
[1659259952939,0.04557787,23658.0,23657.0,0.1]
[1659259953873,0.00257787,23658.0,23657.0,0.1]
[1659259954109,0.00257787,23658.0,23657.0,0.11264348]
[1659259954540,0.04457787,23658.0,23657.0,0.11264348]
[1659259955035,0.04457787,23658.0,23657.0,0.11238348]
[1659259955491,0.4518352,23658.0,23657.0,0.01264348]
[1659259955717,0.4518352,23658.0,23655.0,0.05195008]
[1659259955718,0.304351,23657.0,23655.0,0.05195008]
[1659259956003,0.04143549,23658.0,23655.0,0.0564339]
[1659259956228,0.00257787,23658.0,23655.0,0.0564339]
[1659259956439,0.041,23657.0,23656.0,0.01264348]
[1659259956656,0.44825733,23657.0,23655.0,0.0564339]
[1659259956884,0.40725733,23656.0,23655.0,0.05195008]
[1659259957580,0.4098352,23656.0,23655.0,0.05195008]
[1659259957812,0.4098352,23656.0,23654.0,0.0021]
[1659259957813,0.44869282,23656.0,23654.0,0.0021]
[1659259958022,0.71160833,23655.0,23654.0,0.0021]
[1659259958252,0.67289233,23655.0,23654.0,0.0021]
[1659259958749,0.67289233,23655.0,23654.0,0.01474348]
[1659259958954,0.71160833,23655.0,23654.0,0.01474348]
[1659259959198,0.67289233,23655.0,23654.0,0.01474348]
[1659259959415,0.71160833,23655.0,23654.0,0.0021]
[1659259960527,0.76360833,23655.0,23654.0,0.0021]
[1659259960754,0.76360833,23655.0,23654.0,0.00615928]
[1659259960962,0.76360833,23655.0,23654.0,0.01880276]
[1659259961186,0.76360833,23655.0,23654.0,0.01474348]
[1659259961632,0.45925733,23655.0,23654.0,0.01474348]
[1659259961840,0.71160833,23655.0,23654.0,0.01474348]
[1659259962347,0.40725733,23655.0,23654.0,0.01474348]
[1659259962576,0.45025733,23655.0,23654.0,0.01474348]
[1659259962810,0.4528352,23655.0,23654.0,0.01474348]
[1659259963474,0.04557787,23655.0,23654.0,0.01474348]
[1659259963694,0.00257787,23655.0,23654.0,0.31474348]
[1659259963919,0.00257787,23655.0,23654.0,0.36474348]
[1659259964156,0.00257787,23655.0,23654.0,0.36880276]
[1659259964549,0.04557787,23655.0,23654.0,0.36880276]
[1659259965514,0.04557787,23655.0,23654.0,0.01880276]
[1659259965750,0.00257787,23655.0,23654.0,0.01880276]
[1659259966397,0.04557787,23655.0,23654.0,0.01880276]
[1659259967854,0.00257787,23655.0,23654.0,0.01880276]
[1659259968490,0.04457787,23655.0,23654.0,0.01880276]
[1659259968715,0.04457787,23655.0,23654.0,0.32315376]
[1659259968979,0.09937787,23655.0,23654.0,0.31880276]
[1659259969865,0.05737787,23655.0,23654.0,0.31880276]
[1659259970114,0.05737787,23655.0,23654.0,0.01880276]
[1659259970341,0.05737787,23655.0,23654.0,0.32315376]
[1659259970559,0.09937787,23655.0,23654.0,0.31880276]
[1659259971671,0.09937787,23655.0,23654.0,0.01880276]
[1659259971880,0.05737787,23655.0,23654.0,0.31494644]
[1659259972561,0.09937787,23655.0,23654.0,0.31494644]
[1659259972797,0.09937787,23655.0,23654.0,0.36494644]
[1659259973273,0.09937787,23655.0,23654.0,0.06494644]
[1659259973488,0.09937787,23655.0,23654.0,0.36494644]
[1659259973703,0.09937787,23655.0,23654.0,0.31494644]
[1659259973957,0.05737787,23655.0,23654.0,0.41494644]
[1659259974403,0.09937787,23655.0,23654.0,0.06494644]
[1659259974621,0.13823549,23655.0,23654.0,0.0021]
[1659259974830,0.09937787,23655.0,23654.0,0.00230296]
[1659259975315,0.09937787,23655.0,23654.0,0.01494644]
[1659259975765,0.05737787,23655.0,23654.0,0.01494644]
[1659259976456,0.09937787,23655.0,23654.0,0.01474348]
[1659259976673,0.09937787,23655.0,23654.0,0.01860994]
[1659259977105,0.09937787,23655.0,23654.0,0.01474348]
[1659259977830,0.4646352,23655.0,23654.0,0.01860994]
[1659259978061,0.4646352,23655.0,23654.0,0.0021]
[1659259978062,1.25344382,23655.0,23654.0,0.0021]
[1659259978287,0.80784382,23655.0,23654.0,0.0021]
[1659259978514,0.85184382,23655.0,23654.0,0.0021]
[1659259980103,0.80775809,23655.0,23654.0,0.0021]
[1659259980517,0.85975809,23655.0,23654.0,0.0021]
[1659259980961,0.82090047,23655.0,23654.0,0.0021]
[1659259981907,0.76890047,23655.0,23654.0,0.0021]
[1659259982620,0.81290047,23655.0,23654.0,0.0021]
[1659259983060,0.40564314,23655.0,23654.0,0.0021]
[1659259983295,0.77418447,23655.0,23654.0,0.0021]
[1659259983754,0.73018447,23655.0,23654.0,0.0021]
[1659259984461,0.81304209,23655.0,23654.0,0.0021]
[1659259984673,0.77418447,23655.0,23654.0,0.0021]
[1659259985104,0.77418447,23655.0,23654.0,0.00600438]
[1659259985105,0.36692714,23655.0,23654.0,0.00600438]
[1659259985373,0.10129214,23655.0,23654.0,0.01864786]
[1659259985868,0.05729214,23655.0,23654.0,0.11864786]
[1659259986081,0.05729214,23655.0,23654.0,0.41864786]
[1659259986526,0.09929214,23655.0,23654.0,0.41864786]
[1659259987992,0.05729214,23655.0,23654.0,0.41894786]
[1659259988102,0.05729214,23655.0,23654.0,1.15794519]
[1659259988327,6.011e-05,23659.0,23654.0,1.15794519]
[1659259988328,6.011e-05,23659.0,23654.0,1.46229619]
[1659259988563,0.03935652,23655.0,23654.0,0.75068786]
[1659259988807,0.03935652,23655.0,23654.0,2.04025719]
[1659259989026,0.03935652,23655.0,23654.0,2.02761371]
[1659259989749,6.011e-05,23659.0,23654.0,2.02761371]
[1659259989980,6.011e-05,23659.0,23658.0,0.09974]
[1659259990208,6.011e-05,23659.0,23658.0,0.81134833]
[1659259990443,6.011e-05,23659.0,23658.0,1.11134833]
[1659259990666,6.011e-05,23659.0,23658.0,1.14307833]
[1659259990898,6.011e-05,23659.0,23658.0,1.12399181]
[1659259991374,0.58803506,23659.0,23654.0,0.0024]
[1659259991599,0.40725733,23658.0,23654.0,0.0024]
[1659259991897,0.70725733,23658.0,23654.0,0.0024]
[1659259992120,0.71160833,23657.0,23654.0,0.0024]
[1659259992343,0.30449262,23656.0,23654.0,0.0024]
[1659259992576,0.304351,23655.0,23654.0,0.0024]
[1659259992801,0.40725733,23657.0,23654.0,0.0024]
[1659259993042,0.304351,23656.0,23654.0,0.0024]
[1659259993304,0.046,23658.0,23654.0,0.0024]
[1659259993305,0.046,23658.0,23654.0,0.00231941]
[1659259993538,0.40725733,23657.0,23654.0,0.00231941]
[1659259994004,6.011e-05,23659.0,23654.0,0.00231941]
[1659259994005,0.45725733,23655.0,23654.0,0.00231941]
[1659259994227,0.76160833,23655.0,23654.0,0.00231941]
[1659259994503,0.80046595,23655.0,23654.0,0.00231941]
[1659259994979,0.304351,23655.0,23654.0,0.00231941]
[1659259995207,0.042,23657.0,23654.0,0.00231941]
[1659259995436,0.44925733,23657.0,23654.0,0.00231941]
[1659259995676,0.265635,23656.0,23654.0,0.00231941]
[1659259995899,0.40725733,23657.0,23654.0,0.00231941]
[1659259996130,0.304351,23656.0,23654.0,0.00231941]
[1659259996357,0.265635,23655.0,23654.0,0.00231941]
[1659259996585,0.051,23656.0,23654.0,0.00231941]
[1659259997081,0.354351,23655.0,23654.0,0.00231941]
[1659259997322,0.051,23656.0,23654.0,0.00231941]
[1659259997562,0.76160833,23655.0,23654.0,0.00231941]
[1659259998488,0.86546595,23655.0,23654.0,0.00231941]
[1659259999409,0.82660833,23655.0,23654.0,0.00231941]
[1659259999787,0.065,23655.0,23654.0,0.40957674]
[1659259999794,6.011e-05,23659.0,23654.0,0.47222022]
[1659259999960,6.011e-05,23659.0,23654.0,1.54898022]
[1659260000166,6.011e-05,23659.0,23655.0,0.6]
[1659260000393,0.07206011,23659.0,23656.0,0.00403812]
[1659260000825,0.07206011,23659.0,23656.0,0.05403812]
[1659260001084,0.07206011,23659.0,23658.0,0.09974]
[1659260001547,0.07206011,23659.0,23656.0,0.00403812]
[1659260001751,6.011e-05,23659.0,23656.0,0.00403812]
[1659260001959,6.011e-05,23659.0,23658.0,0.09974]
[1659260002383,0.04406011,23659.0,23658.0,0.09974]
[1659260002594,0.04824457,23659.0,23656.0,0.0166816]
[1659260002811,0.04406011,23659.0,23656.0,0.0666816]
[1659260003021,0.04406011,23659.0,23656.0,0.0166816]
[1659260003696,6.011e-05,23659.0,23656.0,0.0666816]
[1659260003919,6.011e-05,23659.0,23656.0,0.0166816]
[1659260004133,6.011e-05,23659.0,23656.0,0.0666816]
[1659260004794,0.04706011,23659.0,23656.0,0.0666816]
[1659260005233,0.04706011,23659.0,23656.0,0.05403812]
[1659260005658,0.04706011,23659.0,23658.0,0.09974]
[1659260006090,6.011e-05,23659.0,23658.0,0.09974]
[1659260006308,0.04406011,23659.0,23658.0,0.958791]
[1659260006531,0.04406011,23659.0,23658.0,0.95444]
[1659260007833,6.011e-05,23659.0,23658.0,0.95444]
[1659260008768,0.04206011,23659.0,23658.0,0.95444]
[1659260009441,0.04206011,23659.0,23658.0,1.26708348]
[1659260009671,0.04206011,23659.0,23658.0,2.04777833]
[1659260009899,0.02673437,23665.0,23664.0,0.05]
[1659260010127,0.02673437,23665.0,23664.0,0.60762188]
[1659260010347,0.02673437,23665.0,23664.0,1.81411636]
[1659260010570,0.02673437,23665.0,23664.0,1.76411636]
[1659260010792,0.02673437,23665.0,23664.0,1.81411636]
[1659260012165,0.02673437,23665.0,23664.0,1.71411636]
[1659260012399,0.02673437,23665.0,23664.0,1.56676536]
[1659260012879,0.01403437,23665.0,23664.0,1.87111636]
[1659260013112,0.01403437,23665.0,23664.0,1.56676536]
[1659260013328,0.01403437,23665.0,23664.0,1.87111636]
[1659260014040,0.01403437,23665.0,23664.0,1.81411636]
[1659260014492,0.01403437,23665.0,23664.0,1.87711636]
[1659260015217,0.01403437,23665.0,23664.0,1.88986773]
[1659260015437,0.01403437,23665.0,23664.0,1.58551673]
[1659260015658,0.01403437,23665.0,23664.0,1.88986773]
[1659260015881,0.01403437,23665.0,23664.0,1.82686773]
[1659260016600,0.01403437,23665.0,23664.0,1.88986773]
[1659260017062,0.01403437,23665.0,23664.0,1.58551673]
[1659260017296,0.01403437,23665.0,23664.0,1.88986773]
[1659260017776,0.01403437,23665.0,23664.0,1.82686773]
[1659260018673,0.01403437,23665.0,23664.0,1.88986773]
[1659260018943,0.01373437,23665.0,23664.0,1.88986773]
[1659260019174,0.01373437,23665.0,23664.0,1.48986773]
[1659260020344,0.01373437,23665.0,23664.0,1.72686773]
[1659260020671,0.01373437,23665.0,23664.0,1.88986773]
[1659260021569,4.37e-06,23665.0,23664.0,1.88986773]
[1659260021821,0.00018633,23676.0,23667.0,0.565449]
[1659260022038,0.00018633,23676.0,23668.0,2.33744833]
[1659260022039,0.40744366,23676.0,23668.0,2.33744833]
[1659260022270,0.40725733,23676.0,23669.0,0.40725733]
[1659260022507,0.40725733,23676.0,23670.0,0.39974]
[1659260022784,0.40725733,23676.0,23671.0,0.211083]
[1659260023265,0.40725733,23676.0,23671.0,0.261083]
[1659260024198,0.40725733,23676.0,23671.0,0.211083]
[1659260024686,0.001,23677.0,23671.0,0.561083]
[1659260024925,0.001,23677.0,23672.0,0.3]
[1659260025132,0.001,23677.0,23672.0,0.35]
[1659260025354,0.08,23676.0,23672.0,0.35]
[1659260025578,0.001,23677.0,23673.0,0.00207526]
[1659260025795,0.0008898,23677.0,23673.0,0.00207526]
[1659260026493,0.0008898,23677.0,23676.0,0.09974]
[1659260026709,0.0798898,23677.0,23676.0,0.10181499]
[1659260028051,0.0008898,23677.0,23676.0,0.10181499]
[1659260028523,0.0798898,23677.0,23676.0,0.10181499]
[1659260028980,0.0798898,23677.0,23672.0,0.45224348]
[1659260028981,0.11874742,23677.0,23672.0,0.01264348]
[1659260029216,0.11874742,23677.0,23671.0,0.211083]
[1659260029877,0.03974742,23677.0,23671.0,0.211083]
[1659260030548,0.11874742,23677.0,23671.0,0.211083]
[1659260030764,0.11874742,23677.0,23671.0,0.611083]
[1659260031907,0.0008898,23677.0,23672.0,0.40725733]
[1659260032140,0.0008898,23677.0,23673.0,0.3]
[1659260032364,0.0008898,23677.0,23673.0,0.29993989]
[1659260032589,0.0798898,23677.0,23674.0,0.00448382]
[1659260033954,0.0008898,23677.0,23674.0,0.00448382]
[1659260034667,0.0798898,23677.0,23674.0,0.00448382]
[1659260036029,0.0008898,23677.0,23674.0,0.00448382]
[1659260036242,0.03974742,23677.0,23673.0,0.29993989]
[1659260036682,0.11874742,23677.0,23674.0,0.00131141]
[1659260037132,0.0798898,23677.0,23674.0,0.00131141]
[1659260038078,0.0008898,23677.0,23674.0,0.00131141]
[1659260038297,0.0008898,23677.0,23673.0,0.29993989]
[1659260038520,0.0798898,23677.0,23673.0,0.29993989]
[1659260038732,0.0798898,23677.0,23674.0,0.00131141]
[1659260040084,0.0798898,23677.0,23673.0,0.29993989]
[1659260040085,0.03885762,23676.0,23673.0,0.29993989]
[1659260040305,0.0008898,23677.0,23674.0,0.00448382]
[1659260040541,0.0798898,23677.0,23674.0,0.00448382]
[1659260040992,0.08407426,23677.0,23674.0,0.00448382]
[1659260041215,0.11874742,23677.0,23674.0,0.00448382]
[1659260041431,0.0798898,23677.0,23674.0,0.00448382]
[1659260041899,0.0008898,23677.0,23674.0,0.00448382]
[1659260042568,0.0798898,23677.0,23674.0,0.00448382]
[1659260043197,0.0798898,23677.0,23674.0,0.05448382]
[1659260043776,0.0008898,23677.0,23674.0,0.05448382]
[1659260044596,0.0798898,23677.0,23674.0,0.05448382]
[1659260045438,0.08407426,23677.0,23673.0,0.34993989]
[1659260045655,0.11874742,23677.0,23673.0,0.70719722]
[1659260045910,0.0008898,23677.0,23673.0,0.70719722]
[1659260046607,0.0798898,23677.0,23673.0,0.70719722]
[1659260046769,0.0798898,23677.0,23673.0,0.70713711]
[1659260046976,0.0798898,23677.0,23673.0,0.75713711]
[1659260047632,0.0798898,23677.0,23674.0,0.00448382]
[1659260047838,0.0008898,23677.0,23674.0,0.00448382]
[1659260048616,0.0798898,23677.0,23674.0,0.00448382]
[1659260049462,0.11874742,23677.0,23674.0,0.00448382]
[1659260049899,0.03974742,23677.0,23674.0,0.00448382]
[1659260050336,0.03974742,23677.0,23671.0,0.511083]
[1659260050337,0.3,23676.0,23671.0,0.211083]
[1659260050552,0.3,23676.0,23670.0,1.37780934]
[1659260051233,0.11974742,23677.0,23670.0,1.37780934]
[1659260052129,0.11974742,23677.0,23670.0,0.79370934]
[1659260052353,0.03974742,23677.0,23670.0,0.79370934]
[1659260052579,0.11874742,23677.0,23671.0,0.3]
[1659260053953,0.03974742,23677.0,23671.0,0.3]
[1659260054739,0.11874742,23677.0,23671.0,0.3]
[1659260055394,0.11874742,23677.0,23671.0,0.35]
[1659260055833,0.03974742,23677.0,23671.0,0.35]
[1659260056723,0.11874742,23677.0,23671.0,0.3]
[1659260057659,0.11874742,23677.0,23671.0,0.35]
[1659260057885,0.03974742,23677.0,23671.0,0.3]
[1659260058797,0.11874742,23677.0,23671.0,0.3]
[1659260059046,0.11874742,23677.0,23671.0,0.35]
[1659260059720,0.11874742,23677.0,23671.0,0.36264348]
[1659260060001,0.11874742,23677.0,23671.0,0.31264348]
[1659260060234,0.03974742,23677.0,23671.0,0.31264348]
[1659260060665,0.11874742,23677.0,23671.0,0.31264348]
[1659260061543,0.11874742,23677.0,23671.0,0.36264348]
[1659260061775,0.11874742,23677.0,23671.0,0.31264348]
[1659260062006,0.03974742,23677.0,23671.0,0.31264348]
[1659260062679,0.11874742,23677.0,23671.0,0.31264348]
[1659260063397,0.11874742,23677.0,23671.0,0.36264348]
[1659260063864,0.03974742,23677.0,23671.0,0.36264348]
[1659260064107,0.0008898,23677.0,23671.0,0.41264348]
[1659260064337,0.0008898,23677.0,23671.0,0.96384348]
[1659260064574,0.0798898,23677.0,23671.0,0.96384348]
[1659260065799,0.0008898,23677.0,23671.0,0.96384348]
[1659260066560,0.0798898,23677.0,23671.0,0.96384348]
[1659260066803,0.0798898,23677.0,23671.0,0.91384348]
[1659260067030,0.07978394,23677.0,23671.0,0.96384348]
[1659260067674,0.07978394,23677.0,23671.0,0.9012]
[1659260067898,0.00078394,23677.0,23671.0,0.9012]
[1659260068314,0.00078394,23677.0,23671.0,0.9512]
[1659260068752,0.08078394,23677.0,23671.0,0.9512]
[1659260070517,0.00078394,23677.0,23671.0,0.9512]
[1659260070743,0.07978394,23677.0,23671.0,0.9512]
[1659260071988,0.00078394,23677.0,23671.0,0.9512]
[1659260072665,0.07978394,23677.0,23671.0,0.9512]
[1659260073532,0.07978394,23677.0,23671.0,0.9012]
[1659260073963,0.00078394,23677.0,23671.0,0.9012]
[1659260074216,0.00078394,23677.0,23671.0,0.9512]
[1659260074609,0.07978394,23677.0,23671.0,0.9512]
[1659260075026,0.07978394,23677.0,23671.0,1.35845733]
[1659260077402,0.07978394,23677.0,23671.0,1.30845733]
[1659260077872,0.00078394,23677.0,23671.0,1.30845733]
[1659260078545,0.07978394,23677.0,23671.0,1.30845733]
[1659260079578,0.07978394,23677.0,23671.0,1.25845733]
[1659260079790,0.00078394,23677.0,23671.0,1.25845733]
[1659260080273,0.30078394,23677.0,23671.0,1.25845733]
[1659260080493,0.37978394,23677.0,23671.0,0.8512]
[1659260080710,0.37978394,23677.0,23671.0,0.3]
[1659260082040,0.30061516,23677.0,23671.0,0.3]
[1659260082468,0.37961516,23677.0,23671.0,0.3]
[1659260082927,0.07961516,23677.0,23671.0,0.3]
[1659260083161,0.37961516,23677.0,23671.0,0.3]
[1659260084430,0.30061516,23677.0,23671.0,0.3]
[1659260084646,0.37961516,23677.0,23671.0,0.3]
[1659260084860,0.07961516,23677.0,23671.0,0.35]
[1659260085080,0.07961516,23677.0,23671.0,0.65]
[1659260085315,0.07961516,23677.0,23671.0,0.6]
[1659260085524,0.48687249,23677.0,23671.0,0.3]
[1659260085773,0.304351,23676.0,23671.0,0.3]
[1659260085944,0.43958249,23677.0,23671.0,0.3]
[1659260086603,0.51858249,23677.0,23671.0,0.3]
[1659260087450,0.40725733,23676.0,23671.0,0.3]
[1659260088539,0.48625733,23676.0,23671.0,0.3]
[1659260089763,0.40725733,23676.0,23671.0,0.3]
[1659260091808,0.48625733,23676.0,23671.0,0.3]
[1659260093034,0.40725733,23676.0,23671.0,0.3]
[1659260093264,0.48625733,23676.0,23671.0,0.3]
[1659260094585,0.40725733,23676.0,23671.0,0.3]
[1659260095243,0.48625733,23676.0,23671.0,0.3]
[1659260096585,0.40725733,23676.0,23671.0,0.3]
[1659260098250,0.40725733,23676.0,23671.0,0.21839696]
[1659260098460,0.40725733,23676.0,23670.0,0.69658841]
[1659260099125,0.40725733,23676.0,23670.0,0.74658841]
[1659260099809,0.40725733,23676.0,23670.0,0.69658841]
[1659260100047,0.40725733,23676.0,23670.0,0.74658841]
[1659260100208,0.40725733,23676.0,23671.0,0.3]
[1659260100633,0.40725733,23676.0,23671.0,0.29993989]
[1659260100803,0.48625733,23676.0,23671.0,0.29993989]
[1659260101239,0.56525733,23676.0,23671.0,0.29993989]
[1659260102157,0.40725733,23676.0,23671.0,0.29993989]
[1659260102380,0.40725733,23676.0,23671.0,0.34993989]
[1659260102815,0.40725733,23676.0,23671.0,0.29993989]
[1659260103028,0.48625733,23676.0,23671.0,0.29993989]
[1659260103505,0.40725733,23675.0,23671.0,0.29993989]
[1659260103941,0.40725733,23675.0,23671.0,0.29985492]
[1659260104159,0.079,23676.0,23671.0,0.34985492]
[1659260104372,0.00061516,23677.0,23671.0,0.34985492]
[1659260104581,0.40787249,23677.0,23671.0,0.34985492]
[1659260104997,0.079,23676.0,23671.0,0.34985492]
[1659260105424,0.48625733,23676.0,23671.0,0.34985492]
[1659260105658,0.48625733,23676.0,23671.0,0.29985492]
[1659260105659,0.40725733,23675.0,23671.0,0.29985492]
[1659260106342,0.03885762,23674.0,23671.0,0.29985492]
[1659260106673,0.40725733,23675.0,23671.0,0.29985492]
[1659260106888,0.48625733,23675.0,23671.0,0.29985492]
[1659260107730,0.03885762,23674.0,23671.0,0.29985492]
[1659260107941,0.48625733,23675.0,23671.0,0.29985492]
[1659260108116,0.40725733,23675.0,23671.0,0.29985492]
[1659260108578,0.03467316,23674.0,23671.0,0.29985492]
[1659260108784,0.03885762,23674.0,23671.0,0.29985492]
[1659260109226,0.48625733,23675.0,23672.0,0.10686293]
[1659260110108,0.52511495,23675.0,23672.0,0.10686293]
[1659260110525,0.44611495,23675.0,23672.0,0.10686293]
[1659260111025,0.304351,23674.0,23672.0,0.10686293]
[1659260111241,0.265635,23673.0,23672.0,0.10686293]
[1659260111461,0.52511495,23675.0,23672.0,0.10686293]
[1659260111665,0.304351,23674.0,23672.0,0.10686293]
[1659260111867,0.265635,23673.0,23672.0,0.10686293]
[1659260112076,0.44611495,23675.0,23672.0,0.10686293]
[1659260112351,0.304351,23674.0,23672.0,0.10686293]
[1659260112561,0.265635,23673.0,23672.0,0.10686293]
[1659260112783,0.52511495,23675.0,23672.0,0.10686293]
[1659260113022,0.304351,23674.0,23672.0,0.10686293]
[1659260113223,0.265635,23673.0,23672.0,0.10686293]
[1659260113431,0.52511495,23675.0,23672.0,0.10686293]
[1659260113651,0.304351,23674.0,23672.0,0.10686293]
[1659260113852,0.265635,23673.0,23672.0,0.10686293]
[1659260114081,0.304351,23674.0,23672.0,0.10686293]
[1659260114294,0.304351,23674.0,23671.0,0.3]
[1659260114492,0.44611495,23675.0,23672.0,0.10686293]
[1659260114710,0.304351,23674.0,23672.0,0.10686293]
[1659260114910,0.055,23674.0,23672.0,0.10686293]
[1659260115135,0.055,23674.0,23672.0,0.15686293]
[1659260115368,0.055,23674.0,23672.0,0.10686293]
[1659260116240,0.40725733,23675.0,23672.0,0.10686293]
[1659260116933,0.304351,23674.0,23672.0,0.10686293]
[1659260117128,0.304351,23673.0,23672.0,0.10686293]
[1659260117358,0.304351,23674.0,23672.0,0.10686293]
[1659260117569,0.48625733,23675.0,23672.0,0.10686293]
[1659260117999,0.304351,23674.0,23672.0,0.10686293]
[1659260118650,0.40725733,23675.0,23672.0,0.10686293]
[1659260118849,0.37920862,23674.0,23672.0,0.10786293]
[1659260119137,0.07485762,23674.0,23672.0,0.10786293]
[1659260119351,0.036,23674.0,23672.0,0.10786293]
[1659260119790,0.036,23674.0,23672.0,0.001]
[1659260120039,0.340351,23674.0,23673.0,0.10686293]
[1659260120274,0.265635,23674.0,23673.0,0.10686293]
[1659260120495,0.304351,23674.0,23673.0,0.10686293]
[1659260120714,0.40725733,23675.0,23673.0,0.10686293]
[1659260120927,0.340351,23674.0,23673.0,0.10786293]
[1659260121166,0.301635,23674.0,23673.0,0.10786293]
[1659260121411,0.340351,23674.0,23673.0,0.10786293]
[1659260121627,0.036,23674.0,23673.0,0.10786293]
[1659260122280,0.40725733,23675.0,23673.0,0.10686293]
[1659260122571,0.304351,23674.0,23673.0,0.10686293]
[1659260122800,0.265635,23674.0,23673.0,0.10686293]
[1659260123034,0.48625733,23675.0,23673.0,0.10686293]
[1659260123260,0.304351,23674.0,23673.0,0.10686293]
[1659260123472,0.265635,23674.0,23673.0,0.10686293]
[1659260123699,0.52511495,23675.0,23673.0,0.10686293]
[1659260123957,0.304351,23674.0,23673.0,0.10686293]
[1659260124164,0.48625733,23675.0,23673.0,0.10686293]
[1659260124385,0.304351,23674.0,23673.0,0.10686293]
[1659260124607,0.40725733,23675.0,23673.0,0.10686293]
[1659260125062,0.48625733,23675.0,23670.0,0.31295201]
[1659260125284,0.48625733,23675.0,23674.0,0.10686293]
[1659260125717,0.78560833,23675.0,23674.0,0.10686293]
[1659260126178,0.70660833,23675.0,23674.0,0.10686293]
[1659260126587,0.74546595,23675.0,23674.0,0.10686293]
[1659260127053,0.82446595,23675.0,23674.0,0.10686293]
[1659260128188,0.70660833,23675.0,23674.0,0.10686293]
[1659260128414,0.71079279,23675.0,23674.0,0.10686293]
[1659260128662,0.70660833,23675.0,23674.0,0.10686293]
[1659260128878,0.78560833,23675.0,23674.0,0.10686293]
[1659260129381,0.78979279,23675.0,23674.0,0.10686293]
[1659260130262,0.71079279,23675.0,23674.0,0.10686293]
[1659260130753,0.70660833,23675.0,23674.0,0.10686293]
[1659260130958,0.78560833,23675.0,23674.0,0.10686293]
[1659260131675,0.48125733,23675.0,23674.0,0.10686293]
[1659260132374,0.78560833,23675.0,23674.0,0.10686293]
[1659260132811,0.70660833,23675.0,23674.0,0.10686293]
[1659260133074,0.78560833,23675.0,23674.0,0.10686293]
[1659260134261,0.71079279,23675.0,23674.0,0.10686293]
[1659260134491,0.74546595,23675.0,23674.0,0.10686293]
[1659260134919,0.82446595,23675.0,23674.0,0.10686293]
[1659260136138,0.74546595,23675.0,23674.0,0.10686293]
[1659260137000,0.82446595,23675.0,23674.0,0.10686293]
[1659260138179,0.74546595,23675.0,23674.0,0.10686293]
[1659260138378,0.70660833,23675.0,23674.0,0.10686293]
[1659260138813,0.079,23675.0,23674.0,0.10686293]
[1659260140478,0.00061516,23677.0,23674.0,0.10686293]
[1659260140700,0.67350749,23677.0,23674.0,0.10686293]
[1659260140926,0.079,23675.0,23673.0,0.30052978]
[1659260141968,0.079,23675.0,23674.0,0.3]
[1659260142175,0.40787249,23677.0,23674.0,0.3]
[1659260142351,0.304351,23676.0,23673.0,0.00052978]
[1659260142562,0.03885762,23676.0,23673.0,0.00052978]
[1659260142787,0.304351,23675.0,23673.0,0.00052978]
[1659260142983,0.03885762,23676.0,23673.0,0.00052978]
[1659260143428,0.48687249,23677.0,23673.0,0.00052978]
[1659260143638,0.30853546,23676.0,23673.0,0.00052978]
[1659260143852,0.304351,23676.0,23673.0,0.00052978]
[1659260144057,0.40787249,23677.0,23673.0,0.00052978]
[1659260144259,0.304351,23676.0,23673.0,0.00052978]
[1659260144506,0.40787249,23677.0,23673.0,0.00052978]
[1659260144934,0.079,23676.0,23673.0,0.00052978]
[1659260145561,0.03885762,23675.0,23672.0,0.6]
[1659260145790,0.03885762,23675.0,23672.0,0.3]
[1659260146219,0.40787249,23677.0,23674.0,0.10686293]
[1659260146432,0.304351,23676.0,23674.0,0.10686293]
[1659260146647,0.40787249,23677.0,23674.0,0.10686293]
[1659260146858,0.304351,23676.0,23674.0,0.10686293]
[1659260147148,0.48687249,23677.0,23674.0,0.10686293]
[1659260147363,0.304351,23676.0,23674.0,0.10686293]
[1659260147580,0.48687249,23677.0,23674.0,0.10686293]
[1659260147794,0.304351,23676.0,23674.0,0.10686293]